Workbook

Sheet 使い方

Sheet セールス活動表
B1: セールス活動表
B3: 2011/5 A社 | E3: 5月予算（千円） | G3: 10,000
B5: 日付 | C5: 曜日 | D5: 日割予算（千円） | E5: 実績（千円） | F5: 差（千円） | G5: 月予算達成率 | H5: 累計実績（千円） | I5: 残（千円）
B6: 2011-05-01 | C6: 日 | D6: 200 | E6: 180 | F6: =IF(E6="","",E6-D6) -> -20 | G6: =IF(E6="","",H6/$G$3) -> 2% | H6: =IF(E6="","",E6) -> 180 | I6: =IF(E6="","",IF($G$3-H6<0,"0",$G$3-H6)) -> 9,820
B7: 2011-05-02 | C7: 月 | D7: 200 | E7: 200 | F7: 0 | G7: 4% | H7: =IF(E7="","",E7+H6) -> 380 | I7: =IF(E7="","",IF($G$3-H7<0,"0",$G$3-H7)) -> 9,620
B8: 2011-05-03 | C8: 火 | D8: 300 | E8: 330 | F8: 30 | G8: 7% | H8: 710 | I8: =IF(E8="","",IF($G$3-H8<0,"0",$G$3-H8)) -> 9,290
B9: 2011-05-04 | C9: 水 | D9: 400 | E9: 200 | F9: -200 | G9: 9% | H9: 910 | I9: =IF(E9="","",IF($G$3-H9<0,"0",$G$3-H9)) -> 9,090
B10: 2011-05-05 | C10: 木 | D10: 200 | E10: 100 | F10: -100 | G10: 10% | H10: 1,010 | I10: =IF(E10="","",IF($G$3-H10<0,"0",$G$3-H10)) -> 8,990
B11: 2011-05-06 | C11: 金 | D11: 300 | E11: 100 | F11: -200 | G11: 11% | H11: 1,110 | I11: 8,890
B12: 2011-05-07 | C12: 土
B13: 2011-05-08 | C13: 日
B14: 2011-05-09 | C14: 月
B15: 2011-05-10 | C15: 火
B16: 2011-05-11 | C16: 水
B17: 2011-05-12 | C17: 木
B18: 2011-05-13 | C18: 金
B19: 2011-05-14 | C19: 土
B20: 2011-05-15 | C20: 日
B21: 2011-05-16 | C21: 月
B22: 2011-05-17 | C22: 火
B23: 2011-05-18 | C23: 水
B24: 2011-05-19 | C24: 木
B25: 2011-05-20 | C25: 金
B26: 2011-05-21 | C26: 土
B27: 2011-05-22 | C27: 日
B28: 2011-05-23 | C28: 月
B29: 2011-05-24 | C29: 火
B30: 2011-05-25 | C30: 水
B31: 2011-05-26 | C31: 木
B32: 2011-05-27 | C32: 金
B33: 2011-05-28 | C33: 土
B34: 2011-05-29 | C34: 日
B35: 2011-05-30 | C35: 月
B36: 2011-05-31 | C36: 火
B37: 5月合計 | D37: =SUM(D6:D36) -> 1,600 | E37: =SUM(E6:E36) -> 1,110 | F37: =SUM(F6:F36) -> -490 | G37: 11% | H37: =SUM(E6:E36) -> 1,110 | I37: 8,890

Sheet グラフ
